[Event "CIS Master Groups 2024"]
[Site "Vasto"]
[Date "2024.04.09"]
[Round "2.11"]
[White "Boraso, Alessio"]
[Black "Di Trapani, Davide"]
[Result "1/2-1/2"]
[ECO "B50"]
[WhiteElo "2291"]
[BlackElo "2161"]
[Annotator "RC"]
[PlyCount "128"]
[EventDate "2024.04.07"]
[EventType "team-tourn"]
[EventCountry "ITA"]
[SourceTitle "playchess.com"]
[Source "ChessBase"]
[SourceQuality "1"]
[TimeControl "40/5400+30:900+30"]

1. e4 {[%emt 0:06:03]} c5 {[%emt 0:00:07]} 2. Nf3 {[%emt 0:00:07]} d6 {[%emt 0:00:06]} 3. Nc3 {[%emt 0:00:05]} Nf6 {[%emt 0:00:05]} 4. e5 {[%emt 0:00:06]} dxe5 {[%emt 0:00:20]} 5. Nxe5 {[%emt 0:00:19]} a6 {[%emt 0:00:54]} 6. g3 {[%emt 0:00:44]} Qd6 {[%emt 0:01:04]} 7. Qe2 {[%emt 0:06:50]} Nc6 {[%emt 0:17:20]} 8. Nxc6 {[%emt 0:10:58]} Qxc6 {[%emt 0:01:03]} 9. Rg1 {[%emt 0:07:23]} Bg4 {[%emt 0:06:32]} 10. Bg2 {[%emt 0:00:36]} Qxg2 {[%emt 0:05:06]} 11. Rxg2 {[%emt 0:00:10]} Bxe2 {[%emt 0:00:05]} 12. Kxe2 {[%emt 0:00:16]} g6 {[%emt 0:12:26]} 13. d3 {[%emt 0:04:33]} Bg7 {[%emt 0:02:06]} 14. a4 {[%emt 0:09:42]} h5 {[%emt 0:04:58]} 15. Ra3 {[%emt 0:10:55]} Rd8 {[%emt 0:14:00]} 16. Rb3 {[%emt 0:05:19]} Rd7 {[%emt 0:00:10]} 17. Be3 {[%emt 0:00:43]} Rc7 {[%emt 0:04:08]} 18. Bf4 {[%emt 0:01:35]} Rd7 {[%emt 0:01:50]} 19. a5 {[%emt 0:03:53]} h4 {[%emt 0:07:18]} 20. g4 {[%emt 0:04:28]} O-O {[%emt 0:06:26]} 21. h3 {[%emt 0:01:51]} Rc8 {[%emt 0:02:38]} 22. g5 {[%emt 0:09:34]} Nh5 {[%emt 0:06:05]} 23. Be3 {[%emt 0:01:32]} c4 {[%emt 0:03:02]} 24. Ra3 {[%emt 0:02:45]} cxd3+ {[%emt 0:01:49]} 25. cxd3 {[%emt 0:00:02]} Rcd8 {[%emt 0:00:26]} 26. Na4 {[%emt 0:00:32]} Rd5 {[%emt 0:00:07]} 27. Rg4 {[%emt 0:02:10]} Rxa5 {[%emt 0:00:35]} 28. b4 {[%emt 0:03:46]} Rad5 {[%emt 0:01:09]} 29. Nc5 {[%emt 0:00:58]} Rb8 {[%emt 0:00:29]} 30. Rxh4 {[%emt 0:00:53]} e5 {[%emt 0:00:23]} 31. Rg4 {[%emt 0:02:13]} Bf8 {[%emt 0:00:41]} 32. Rc3 {[%emt 0:01:14]} Bxc5 {[%emt 0:01:17]} 33. bxc5 {[%emt 0:00:30]} Rc8 {[%emt 0:00:36]} 34. Rb4 {[%emt 0:00:24]} Nf4+ {[%emt 0:00:36]} 35. Bxf4 {[%emt 0:01:32]} exf4 {[%emt 0:00:01]} 36. d4 {[%emt 0:00:07]} b5 {[%emt 0:01:45]} 37. h4 {[%emt 0:01:23]} f6 {[%emt 0:00:24]} 38. gxf6 {[%emt 0:01:39]} Kf7 {[%emt 0:00:18]} 39. Kf3 {[%emt 0:00:32]} Kxf6 {[%emt 0:00:30]} 40. Ra3 {[%emt 0:01:35]} Rc6 {[%emt 0:00:56]} 41. Ke4 {[%emt 0:01:43]} Rd8 {[%emt 0:07:11]} 42. Rb1 {[%emt 0:05:37]} Re6+ {[%emt 0:01:07]} 43. Kd3 {[%emt 0:00:38]} Kf5 {[%emt 0:01:58]} 44. Rg1 {[%emt 0:03:22]} Rc6 {[%emt 0:03:04]} 45. Rg5+ {[%emt 0:01:42]} Kf6 {[%emt 0:00:07]} 46. Ra1 {[%emt 0:01:37]} Kf7 {[%emt 0:00:46]} 47. Rag1 {[%emt 0:01:44]} Rf6 {[%emt 0:02:15]} 48. d5 {[%emt 0:01:30]} a5 {[%emt 0:00:14]} 49. h5 {[%emt 0:01:00]} a4 {[%emt 0:00:47]} 50. hxg6+ {[%emt 0:00:12]} Kg7 {[%emt 0:00:04]} 51. Kc3 {[%emt 0:00:54]} f3 {[%emt 0:00:30]} 52. c6 {[%emt 0:00:27]} Rf4 {[%emt 0:00:24]} 53. Rh5 {[%emt 0:00:48]} Rc4+ {[%emt 0:00:13]} 54. Kb2 {[%emt 0:00:08]} Re8 {[%emt 0:00:49]} 55. Rh7+ {[%emt 0:00:33]} Kg8 {[%emt 0:00:40]} 56. c7 {[%emt 0:01:00]} Re2+ {[%emt 0:00:17]} 57. Kb1 {[%emt 0:00:14]} Rcc2 {[%emt 0:00:28]} 58. c8=Q+ {[%emt 0:00:43]} Rxc8 {[%emt 0:00:07]} 59. d6 {[%emt 0:00:25]} Rc3 {[%emt 0:01:40]} 60. Rc7 {[%emt 0:00:36]} Rb3+ {[%emt 0:00:48]} 61. Ka1 {[%emt 0:00:03]} Ra3+ {[%emt 0:00:20]} 62. Kb1 {[%emt 0:00:00]} Rb3+ {[%emt 0:01:00]} 63. Kc1 {[%emt 0:00:11]} Ra3 {[%emt 0:00:13]} 64. Kb1 {[%emt 0:01:44]} Rb3+ {[%emt 0:00:34]} 1/2-1/2

[Event "CIS Master Groups 2024"]
[Site "Vasto"]
[Date "2024.04.09"]
[Round "2.12"]
[White "Bemporad, Filippo"]
[Black "Botta, Massimiliano"]
[Result "0-1"]
[ECO "E94"]
[WhiteElo "1971"]
[BlackElo "2188"]
[Annotator "RC"]
[PlyCount "76"]
[EventDate "2024.04.07"]
[EventType "team-tourn"]
[EventCountry "ITA"]
[SourceTitle "playchess.com"]
[Source "ChessBase"]
[SourceQuality "1"]
[TimeControl "40/5400+30:900+30"]

1. d4 {[%emt 0:05:51]} Nf6 {[%emt 0:00:14]} 2. Nf3 {[%emt 0:00:06]} g6 {[%emt 0:00:13]} 3. c4 {[%emt 0:00:06]} Bg7 {[%emt 0:00:04]} 4. Nc3 {[%emt 0:00:07]} O-O {[%emt 0:00:14]} 5. e4 {[%emt 0:00:02]} d6 {[%emt 0:00:13]} 6. Be2 {[%emt 0:00:07]} e5 {[%emt 0:00:41]} 7. O-O {[%emt 0:00:07]} exd4 {[%emt 0:00:30]} 8. Nxd4 {[%emt 0:00:10]} Re8 {[%emt 0:00:06]} 9. f3 {[%emt 0:00:38]} c6 {[%emt 0:00:15]} 10. Bg5 {[%emt 0:06:01]} Qb6 {[%emt 0:00:46]} 11. Na4 {[%emt 0:00:40]} Qa5 {[%emt 0:00:11]} 12. Bh4 {[%emt 0:05:00]} d5 {[%emt 0:13:56]} 13. cxd5 {[%emt 0:17:36]} cxd5 {[%emt 0:01:01]} 14. Nb5 {[%emt 0:05:02]} Bd7 {[%emt 0:10:07]} 15. Be1 {[%emt 0:04:09]} Qd8 {[%emt 0:00:46]} 16. e5 {[%emt 0:06:32]} Rxe5 {[%emt 0:03:33]} 17. Bg3 {[%emt 0:02:29]} Re7 {[%emt 0:17:56]} 18. Nac3 {[%emt 0:11:00]} Bxb5 {[%emt 0:03:15]} 19. Nxb5 {[%emt 0:01:23]} Nc6 {[%emt 0:00:12]} 20. Bh4 {[%emt 0:02:55]} d4 {[%emt 0:07:27]} 21. Qd2 {[%emt 0:04:23]} Qb6 {[%emt 0:07:07]} 22. Bd3 {[%emt 0:02:45]} Rd8 {[%emt 0:09:35]} 23. Rad1 {[%emt 0:00:48]} Re3 {[%emt 0:01:55]} 24. Na3 {[%emt 0:04:01]} Nb4 {[%emt 0:04:51]} 25. Bb1 {[%emt 0:03:47]} Ree8 {[%emt 0:01:46]} 26. Bd3 {[%emt 0:01:44]} Nxd3 {[%emt 0:01:06]} 27. Qxd3 {[%emt 0:01:10]} Qxb2 {[%emt 0:00:23]} 28. Rb1 {[%emt 0:02:08]} Qxa2 {[%emt 0:00:48]} 29. Nc4 {[%emt 0:05:14]} Qa6 {[%emt 0:03:43]} 30. Ra1 {[%emt 0:00:36]} Qc6 {[%emt 0:01:40]} 31. Rxa7 {[%emt 0:00:42]} Rc8 {[%emt 0:01:53]} 32. Nd2 {[%emt 0:04:01]} Nd5 {[%emt 0:04:01]} 33. Ne4 {[%emt 0:00:36]} f5 {[%emt 0:01:02]} 34. Nd2 {[%emt 0:02:19]} Kh8 {[%emt 0:00:36]} 35. Qb3 {[%emt 0:00:27]} Re2 {[%emt 0:05:54]} 36. Nb1 {[%emt 0:01:19]} Ne3 {[%emt 0:00:00]} 37. Qd3 {[%emt 0:02:21]} Rxg2+ {[%emt 0:00:00]} 38. Kh1 {[%emt 0:00:11]} Qc2 {[%emt 0:00:00]} 0-1

[Event "CIS Master Groups 2024"]
[Site "Vasto"]
[Date "2024.04.09"]
[Round "2.14"]
[White "Lumachi, Gabriele"]
[Black "Dardha, Daniel"]
[Result "1/2-1/2"]
[ECO "E10"]
[WhiteElo "2413"]
[BlackElo "2630"]
[Annotator "TA"]
[PlyCount "62"]
[EventDate "2024.04.07"]
[EventType "team-tourn"]
[EventCountry "ITA"]
[SourceTitle "playchess.com"]
[Source "ChessBase"]
[SourceQuality "1"]
[TimeControl "40/5400+30:900+30"]

{[%evp 9,62,28,16,3,22,20,29,30,76,72,71,82,92,104,81,98,130,106,135,53,52,58,47,46,58,39,53,25,34,9,20,0,0,0,0,0,0,0,0,0,0,0,0,0,0,0,0,0,0,0,0,0,0,0,0]} 1. d4 {[%emt 0:00:04]} Nf6 {[%emt 0:00:11]} 2. c4 {[%emt 0:00:07]} e6 {[%emt 0:00:06]} 3. Nf3 {[%emt 0:01:26]} h6 {[%emt 0:01:30]} 4. Nc3 {[%emt 0:01:02]} Bb4 {[%emt 0:00:05]} 5. Bd2 {[%emt 0:02:18]} O-O {[%emt 0:05:14]} 6. e3 {[%emt 0:00:10]} d6 {[%emt 0:03:40][%cal Bd7d6,Bd6c5][%mdl 32]} 7. Qc2 {[%emt 0:09:48]} c5 {[%emt 0:03:59]} 8. a3 {[%emt 0:00:27] White has an edge.} Ba5 {[%emt 0:03:42]} (8... Bxc3 $11 9. Bxc3 cxd4 10. exd4 (10. Nxd4 e5 $11) 10... b6) 9. dxc5 $16 {[%emt 0:04:37]} dxc5 {[%emt 0:00:10]} 10. Rg1 {[%emt 0:00:03]} b6 {[%emt 0:24:21]} 11. g4 {[%emt 0:05:57]} Bb7 {[%emt 0:06:41]} 12. Be2 {[%emt 0:01:06]} Bxc3 {[%emt 0:07:39]} 13. Bxc3 {[%emt 0:00:09] [#] Black must now prevent g5.} Ne4 {[%emt 0:00:23]} 14. h4 {[%emt 0:01:02]} ({White should try} 14. g5 $16 h5 15. Be5) 14... Nxc3 $14 {[%emt 0:07:30]} 15. Qxc3 {[%emt 0:00:16]} Qf6 {[%emt 0:02:33]} 16. Qxf6 {[%emt 0:01:30]} gxf6 {[%emt 0:00:04]} 17. O-O-O {[%emt 0:00:47]} Kg7 {[%emt 0:05:06]} 18. g5 {[%emt 0:03:15]} hxg5 {[%emt 0:01:44]} 19. hxg5 {[%emt 0:00:10]} Na6 {[%emt 0:01:21] The position is equal.} 20. g6 {[%emt 0:19:27]} fxg6 {[%emt 0:05:06]} 21. Nh4 {[%emt 0:01:12]} g5 {[%emt 0:00:34]} 22. f4 {[%emt 0:00:25]} Rad8 {[%emt 0:01:35]} 23. fxg5 {[%emt 0:06:50]} Rxd1+ {[%emt 0:00:09]} 24. Bxd1 {[%emt 0:01:02]} f5 {[%emt 0:03:33]} 25. Bf3 {[%emt 0:06:30]} Bc8 {[%emt 0:01:16]} 26. Rd1 {[%emt 0:03:10]} Rh8 {[%emt 0:01:02]} 27. Bb7 {[%emt 0:01:27]} Bxb7 {[%emt 0:06:20]} 28. Rd7+ {[%emt 0:00:17]} Kg8 {[%emt 0:00:04]} 29. Rd8+ {[%emt 0:01:03]} Kg7 {[%emt 0:00:04]} 30. Rd7+ {[%emt 0:00:10]} Kg8 {[%emt 0:00:04]} 31. Rd8+ {[%emt 0:00:05]} Kg7 {[%emt 0:10:14] Weighted Error Value: White=0.09 (flawless) /Black=0.07 (flawless) .  Mistake:       	White=1     	Black=1      Inaccurate:     	White=1     	Black=1      OK:         	White=13    	Black=14     Best:        	White=4     	Black=2} 1/2-1/2

[Event "CIS Master Groups 2024"]
[Site "Vasto"]
[Date "2024.04.09"]
[Round "2.17"]
[White "Socko, Bartosz"]
[Black "Mastrovasilis, Dimitrios"]
[Result "1/2-1/2"]
[ECO "B45"]
[WhiteElo "2565"]
[BlackElo "2576"]
[Annotator "TA"]
[PlyCount "37"]
[EventDate "2024.04.07"]
[EventType "team-tourn"]
[EventCountry "ITA"]
[SourceTitle "playchess.com"]
[Source "ChessBase"]
[SourceQuality "1"]
[TimeControl "40/5400+30:900+30"]

{[%evp 20,37,13,0,0,15,20,0,0,0,0,0,0,-10,0,0,0,-34,-25,-27]} 1. e4 {[%emt 0:00:03]} c5 {[%emt 0:00:45]} 2. Nf3 {[%emt 0:00:08]} e6 {[%emt 0:00:16]} 3. d4 {[%emt 0:00:05]} cxd4 {[%emt 0:00:15]} 4. Nxd4 {[%emt 0:00:05]} Nf6 {[%emt 0:00:12]} 5. Nc3 {[%emt 0:00:42]} Nc6 {[%emt 0:00:11]} 6. a3 {[%emt 0:03:39]} d5 {[%emt 0:06:50]} 7. exd5 {[%emt 0:02:18]} exd5 {[%emt 0:01:58]} 8. Bb5 {[%emt 0:05:14]} Bd7 {[%emt 0:01:49]} 9. O-O {[%emt 0:01:15]} Be7 {[%emt 0:01:21]} 10. Re1 {[%emt 0:01:11]} O-O {[%emt 0:01:40]} 11. Bg5 {[%emt 0:00:07]} h6 {[%emt 0:09:57]} 12. Bh4 {[%emt 0:07:17]} Rc8 {[%emt 0:15:37]} 13. Bf1 {[%emt 0:10:17][%cal Oe1e7]} Re8 {[%emt 0:03:02] The position is equal.} 14. Qd3 {[%emt 0:06:55]} Nxd4 {[%emt 0:20:45]} 15. Qxd4 {[%emt 0:00:18]} Bc5 {[%emt 0:00:47]} 16. Rxe8+ {[%emt 0:10:20]} Bxe8 {[%emt 0:02:12]} (16... Nxe8 $2 {too greedy.} 17. Qxc5 (17. Qxd5 $2 {is the wrong capture.} Qxh4 18. g3 Qf6 $19) 17... Qxh4 18. Qxa7 $18) 17. Qd2 {[%emt 0:03:53]} g5 {[%emt 0:02:57]} 18. Bg3 {[%emt 0:06:49]} (18. Bxg5 $5 hxg5 19. Qxg5+ Kh8 20. Qh6+ Kg8 21. Qg5+ Kh8 22. Qh6+ Kg8 23. Qg5+ $15) 18... Ne4 {[%emt 0:04:17]} 19. Nxe4 {[%emt 0:08:38] An uneventful encounter.   Weighted Error Value: White=0.10 (very precise) /Black=0.01 (flawless) .  Inaccurate:     	White=1     	---        OK:         	White=4     	Black=4} 1/2-1/2

[Event "CIS Master Groups 2024"]
[Site "Vasto"]
[Date "2024.04.09"]
[Round "2.18"]
[White "David, Alberto"]
[Black "Rombaldoni, Denis"]
[Result "0-1"]
[ECO "C41"]
[WhiteElo "2512"]
[BlackElo "2484"]
[Annotator "TA"]
[PlyCount "64"]
[EventDate "2024.04.07"]
[EventType "team-tourn"]
[EventCountry "ITA"]
[SourceTitle "playchess.com"]
[Source "ChessBase"]
[SourceQuality "1"]
[TimeControl "40/5400+30:900+30"]

{[%evp 12,64,44,31,41,41,43,56,44,43,49,37,37,40,41,42,41,29,47,35,29,30,45,0,0,0,0,0,0,0,0,0,0,0,0,0,0,0,0,0,0,0,0,0,13,-24,0,-556,-555,-555,-555,-665,-583,-559,-537]} 1. e4 {[%emt 0:00:09]} d6 {[%emt 0:00:15]} 2. d4 {[%emt 0:00:14]} Nf6 {[%emt 0:00:06]} 3. Nc3 {[%emt 0:00:06]} e5 {[%emt 0:00:03]} 4. Nf3 {[%emt 0:00:22]} exd4 {[%emt 0:00:09]} 5. Nxd4 {[%emt 0:00:26]} Be7 {[%emt 0:00:11]} 6. Bf4 {[%emt 0:03:00]} O-O {[%emt 0:00:50]} 7. Qd2 {[%emt 0:03:44]} c6 {[%emt 0:00:12]} 8. Be2 {[%emt 0:10:28]} Re8 {[%emt 0:03:45]} 9. O-O-O {[%emt 0:06:29]} Bf8 {[%emt 0:00:58] White is slightly better.} 10. f3 {[%emt 0:07:38]} d5 {[%emt 0:00:12]} 11. exd5 {[%emt 0:04:37]} Nxd5 {[%emt 0:00:51]} 12. Nxd5 {[%emt 0:01:13]} Qxd5 {[%emt 0:00:04]} 13. Kb1 {[%emt 0:00:47]} Nd7 {[%emt 0:04:33]} 14. Rhe1 {[%emt 0:11:14]} Nb6 {[%emt 0:02:16] Dodges Bc4} 15. Bd3 {[%emt 0:08:06]} Rxe1 {[%emt 0:09:38]} 16. Qxe1 {[%emt 0:00:32][%cal Od4b5] [#] Black must now prevent Nb5!} g6 {[%emt 0:15:37]} 17. c3 {[%emt 0:05:24]} Bd7 {[%emt 0:27:15]} 18. Be4 {[%emt 0:08:39]} Qc4 {[%emt 0:00:55]} 19. Bd3 {[%emt 0:02:59]} Qd5 {[%emt 0:00:21]} 20. Be4 {[%emt 0:03:22]} Qc4 {[%emt 0:00:05]} 21. Bd3 {[%emt 0:01:34]} Qa4 {[%emt 0:11:20]} 22. Bc2 {[%emt 0:00:45]} Qa6 {[%emt 0:00:04]} 23. Bd3 {[%emt 0:02:50]} Qa4 {[%emt 0:02:17]} 24. Bc2 {[%emt 0:00:13]} Qa6 {[%emt 0:00:02]} 25. Bd3 {[%emt 0:00:03]} Nc4 {[%emt 0:04:07]} 26. b3 {[%emt 0:09:42]} Na3+ {[%emt 0:00:08]} 27. Kb2 {[%emt 0:00:14]} b5 {[%emt 0:01:23]} 28. Bf5 {[%emt 0:02:18]} Re8 $1 {[%emt 0:02:27]} ({Of course not} 28... Bxf5 $6 29. Nxf5 Nc4+ (29... gxf5 30. Qg3+ Bg7 31. Bh6 Nc4+ 32. bxc4) 30. bxc4 $16) (28... gxf5 29. Qg3+ Bg7 30. Bh6 Nc4+ 31. bxc4) 29. Bxd7 $4 {[%emt 0:02:25][%mdl 8192]} (29. Qf2 $1 $11 {and White has nothing to worry.} Bxf5 (29... gxf5 $2 {loses.} 30. Qg3+ Kh8 31. Be5+ Rxe5 32. Qxe5+ Kg8 33. Qg3+ Kh8 34. Nc2 $18) 30. Nxf5) 29... Rxe1 $19 {[%emt 0:00:04] Black is clearly winning.} 30. Rxe1 {[%emt 0:00:02][%cal Oe1e8] Strongly threatening Re8!} b4 {[%emt 0:01:24]} 31. c4 {[%emt 0:04:57] [#]} Nxc4+ $1 {[%emt 0:00:14][%mdl 512]} 32. bxc4 {[%emt 0:00:03]} Qa3+ {[%emt 0:01:31] Weighted Error Value: White=0.30/Black=0.08 (flawless) .  Loses game:     	White=1     	---        Inaccurate:     	White=2     	---        OK:         	White=11    	Black=11     Best:        	---       	Black=1      Strong:       	---       	Black=1} 0-1

[Event "CIS Master Groups 2024"]
[Site "Vasto"]
[Date "2024.04.09"]
[Round "2.19"]
[White "Garcia Palermo, Carlos Horacio"]
[Black "Altini, Nicola"]
[Result "1-0"]
[ECO "D23"]
[WhiteElo "2407"]
[BlackElo "2393"]
[Annotator "TA"]
[PlyCount "111"]
[EventDate "2024.04.07"]
[EventType "team-tourn"]
[EventCountry "ITA"]
[SourceTitle "playchess.com"]
[Source "ChessBase"]
[SourceQuality "1"]
[TimeControl "40/5400+30:900+30"]

{[%evp 10,111,12,0,21,12,16,17,20,8,14,15,16,-4,5,-7,11,8,21,31,25,19,25,20,26,8,38,30,60,60,53,19,29,27,28,16,13,8,14,16,81,89,86,84,69,70,69,63,66,71,90,83,120,105,119,101,100,123,201,178,171,183,207,208,210,207,206,214,214,206,247,264,263,231,265,273,364,321,345,337,353,367,497,504,501,506,571,571,696,687,726,708,817,837,802,780,969,946,969,966,940,925,1012,968]} 1. d4 {[%emt 0:00:11]} d5 {[%emt 0:00:02]} 2. Nf3 {[%emt 0:00:33]} Nf6 {[%emt 0:00:05]} 3. c4 {[%emt 0:00:12]} c6 {[%emt 0:00:04]} 4. Qc2 {[%emt 0:01:09]} dxc4 {[%emt 0:00:33]} 5. Qxc4 {[%emt 0:00:08]} Bg4 {[%emt 0:00:07]} 6. Nbd2 {[%emt 0:01:32]} Nbd7 {[%emt 0:03:08]} 7. g3 {[%emt 0:00:57]} e6 {[%emt 0:00:38]} 8. Bg2 {[%emt 0:01:10]} Be7 {[%emt 0:00:11] The position is equal.} 9. O-O {[%emt 0:00:41]} O-O {[%emt 0:00:21]} 10. b3 {[%emt 0:07:13]} Rc8 {[%emt 0:01:01]} 11. h3 {[%emt 0:01:38]} Bh5 {[%emt 0:05:04]} 12. Bb2 {[%emt 0:01:09]} c5 {[%emt 0:26:14]} 13. Rfc1 {[%emt 0:09:22]} Nb6 {[%emt 0:07:44]} 14. Qb5 {[%emt 0:12:29][%cal Rd4c5]} a6 {[%emt 0:10:10]} 15. Qa5 {[%emt 0:01:19][%cal Rd4c5]} Nbd5 {[%emt 0:07:37]} 16. Qxd8 {[%emt 0:00:14]} Rfxd8 {[%emt 0:00:03]} 17. a3 {[%emt 0:01:00]} cxd4 {[%emt 0:11:02]} 18. Nxd4 {[%emt 0:03:15]} Bc5 {[%emt 0:25:26]} 19. e3 {[%emt 0:04:33]} Bg6 {[%emt 0:00:00]} 20. Nc4 {[%emt 0:02:09][%cal Bd2c4,Bc4a5,Ba5c6][%mdl 32]} Be4 {[%emt 0:00:00]} 21. Na5 {[%emt 0:05:31]} Bxg2 {[%emt 0:00:00]} 22. Kxg2 {[%emt 0:00:16]} (22. Rxc5 $5 Rxc5 23. Nxb7 $11) 22... b6 {[%emt 0:00:00]} 23. Nac6 {[%emt 0:04:35]} Re8 {[%emt 0:00:00]} 24. b4 {[%emt 0:00:17]} Bxd4 {[%emt 0:00:00]} (24... Bf8 $11) 25. Bxd4 $16 {[%emt 0:00:28][%cal Bb2d4,Bd4e5,Be5d6][%mdl 32]} Rc7 {[%emt 0:01:20]} 26. Be5 {[%emt 0:00:57]} Rb7 {[%emt 0:00:52] Black is weak on the dark squares} 27. Kf3 {[%emt 0:01:16][%cal Bg2f3,Bf3e2,Be2d2][%mdl 32]} Nd7 {[%emt 0:00:37]} 28. Bd6 {[%emt 0:10:13]} f5 {[%emt 0:00:37]} 29. Rc2 {[%emt 0:00:07]} N5f6 {[%emt 0:00:46] Black is on the road to losing.} 30. Rd1 $36 {[%emt 0:09:46][%cal Ba1d1,Bd1d6,Bd6b6][%mdl 2080] Keeping Black busy. White is more active.} Ne4 {[%emt 0:00:52]} 31. Ke2 {[%emt 0:01:03]} Ndf6 {[%emt 0:00:33]} 32. f3 {[%emt 0:02:34]} Nxd6 {[%emt 0:00:32]} 33. Rxd6 {[%emt 0:00:08]} Rc7 {[%emt 0:00:20] [#]} (33... e5 $16 34. Nd8 Rd7 35. Rxd7 (35. Rxb6 $2 Rexd8 36. Rxa6 e4 $19) 35... Nxd7) 34. Nd4 $1 $18 {[%emt 0:07:20][%csl LRb6,LRc7,LRe6]} Rxc2+ {[%emt 0:00:06]} 35. Nxc2 {[%emt 0:00:20][%mdl 4096] Endgame. KRN-KRN} Rc8 {[%emt 0:00:40]} 36. Kd2 {[%emt 0:00:28]} (36. Nd4 Rc3 37. Rxe6 (37. Nxe6 Rxa3 38. Nd4 Ra2+ 39. Kd3 Ra3+ 40. Kd2 Ra2+ 41. Kc1 Rf2 $16) 37... f4) 36... e5 {[%emt 0:00:38][%cal Of5f4,Be6e5,Be5e4][%mdl 32]} 37. Rxb6 {[%emt 0:02:23]} Rd8+ {[%emt 0:00:06]} 38. Kc1 {[%emt 0:00:34]} Ra8 {[%emt 0:00:54]} 39. Re6 {[%emt 0:03:17]} e4 {[%emt 0:00:11]} 40. f4 {[%emt 0:00:41]} Kf7 {[%emt 0:00:26]} 41. Rc6 {[%emt 0:15:17]} Nd5 {[%emt 0:15:31]} 42. Kd2 {[%emt 0:01:29]} h5 {[%emt 0:00:00]} 43. h4 {[%emt 0:00:00]} Ne7 {[%emt 0:00:00]} 44. Rd6 {[%emt 0:00:00] Dodges Rd8} Ng8 {[%emt 0:00:00]} 45. Nd4 {[%emt 0:00:00]} g6 {[%emt 0:00:00]} 46. Nc6 {[%emt 0:00:00] White is clearly winning.} Nf6 {[%emt 0:00:00]} 47. Kc3 {[%emt 0:00:00]} Rc8 {[%emt 0:00:00] [#] Strongly threatening ...Ne8.} 48. Kd4 {[%emt 0:00:00]} Ne8 {[%emt 0:00:00]} 49. Ne5+ {[%emt 0:00:00]} Ke7 {[%emt 0:00:00]} 50. Rxa6 {[%emt 0:00:00]} Nd6 {[%emt 0:00:00]} 51. Kd5 {[%emt 0:00:00]} Nb5 {[%emt 0:00:00] Repels Ra7+} 52. Nxg6+ {[%emt 0:00:00]} ({Inferior is} 52. Rxg6 Nc3+ 53. Kd4 Ne2+ 54. Kd5 Nc3+ 55. Kd4 Nb5+ 56. Kd5 Nc3+ $11) 52... Kf7 {[%emt 0:00:00]} 53. Ne5+ {[%emt 0:00:00]} Ke7 {[%emt 0:00:00]} 54. Re6+ {[%emt 0:00:00]} Kf8 {[%emt 0:00:00]} 55. Rf6+ {[%emt 0:00:00]} Ke7 {[%emt 0:00:00]} 56. Rf7+ {[%emt 0:00:00] Weighted Error Value: White=0.06 (flawless) /Black=0.21 (precise) .  Mistake:       	---       	Black=2      Inaccurate:     	White=1     	Black=5      OK:         	White=20    	Black=17     Best:        	White=1     	Black=1      Strong:       	White=1     	---} ({And not} 56. Rxf5 Nc3+ 57. Kd4 Ne2+ 58. Kd5 Nc3+ 59. Kd4 Nb5+ (59... Ne2+ 60. Kd5 $11) 60. Kd5 Nc3+ $11) 1-0

[Event "CIS Master Groups 2024"]
[Site "Vasto"]
[Date "2024.04.09"]
[Round "2.20"]
[White "Collutiis, Duilio"]
[Black "Loiacono, Antonio"]
[Result "1/2-1/2"]
[ECO "A45"]
[WhiteElo "2334"]
[BlackElo "2292"]
[Annotator "RC"]
[PlyCount "67"]
[EventDate "2024.04.07"]
[EventType "team-tourn"]
[EventCountry "ITA"]
[SourceTitle "playchess.com"]
[Source "ChessBase"]
[SourceQuality "1"]
[TimeControl "40/5400+30:900+30"]

1. d4 {[%emt 0:03:05]} Nf6 {[%emt 0:00:05]} 2. Bg5 {[%emt 0:00:40]} c5 {[%emt 0:00:18]} 3. Bxf6 {[%emt 0:03:36]} gxf6 {[%emt 0:00:48]} 4. d5 {[%emt 0:00:09]} Qb6 {[%emt 0:04:32]} 5. Qc1 {[%emt 0:00:07]} f5 {[%emt 0:03:07]} 6. g3 {[%emt 0:00:09]} d6 {[%emt 0:12:28]} 7. Bg2 {[%emt 0:03:40]} Nd7 {[%emt 0:00:55]} 8. Nh3 {[%emt 0:22:08]} Nf6 {[%emt 0:11:22]} 9. O-O {[%emt 0:05:21]} h5 {[%emt 0:05:43]} 10. c4 {[%emt 0:06:00]} h4 {[%emt 0:10:19]} 11. Nc3 {[%emt 0:00:44]} Bd7 {[%emt 0:01:02]} 12. Qc2 {[%emt 0:01:06]} Bg7 {[%emt 0:05:58]} 13. Rab1 {[%emt 0:00:23]} Qb4 {[%emt 0:03:02]} 14. b3 {[%emt 0:00:57]} hxg3 {[%emt 0:02:10]} 15. hxg3 {[%emt 0:00:11]} Nh5 {[%emt 0:05:17]} 16. Rfc1 {[%emt 0:03:42]} O-O-O {[%emt 0:12:57]} 17. e3 {[%emt 0:01:19]} Kb8 {[%emt 0:00:35]} 18. Ne2 {[%emt 0:01:12]} Qa5 {[%emt 0:10:25]} 19. Nhf4 {[%emt 0:05:39]} Nxf4 {[%emt 0:02:56]} 20. Nxf4 {[%emt 0:00:12]} e5 {[%emt 0:00:56]} 21. dxe6 {[%emt 0:07:55]} fxe6 {[%emt 0:00:03]} 22. e4 {[%emt 0:04:34]} Bh6 {[%emt 0:01:49]} 23. exf5 {[%emt 0:00:03]} exf5 {[%emt 0:00:53]} 24. Qd3 {[%emt 0:06:53]} Bxf4 {[%emt 0:00:57]} 25. Qf3 {[%emt 0:00:17]} Bc6 {[%emt 0:01:12]} 26. Qxf4 {[%emt 0:00:07]} Bxg2 {[%emt 0:00:03]} 27. Kxg2 {[%emt 0:00:07]} Qxa2 {[%emt 0:00:09]} 28. Qxf5 {[%emt 0:02:44]} Rdf8 {[%emt 0:00:58]} 29. Qc2 {[%emt 0:00:11]} Rxf2+ {[%emt 0:02:09]} 30. Qxf2 {[%emt 0:00:09]} Rh2+ {[%emt 0:00:06]} 31. Kxh2 {[%emt 0:00:04]} Qxf2+ {[%emt 0:00:03]} 32. Kh3 {[%emt 0:00:10]} Qf5+ {[%emt 0:00:18]} 33. g4 {[%emt 0:01:42]} Qh7+ {[%emt 0:00:55]} 34. Kg3 {[%emt 0:00:41]} 1/2-1/2